[Event "Marshall CC U2400 03-2025"]
[Site "New York"]
[Date "2025.03.22"]
[Round "2.10"]
[White "Qureshi, Sadia"]
[Black "Belenky, Nicholas"]
[Result "0-1"]
[Annotator "TA"]
[ECO "D30"]
[WhiteElo "1755"]
[BlackElo "1981"]
[PlyCount "88"]
[EventDate "2025.03.20"]
[EventType "swiss"]
[EventCountry "USA"]
[SourceTitle "playchess.com"]
[Source "ChessBase"]
[SourceQuality "1"]
[TimeControl "5400+30"]

{[%evp 9,88,16,19,20,27,20,38,5,55,51,54,0,15,-27,7,0,0,0,49,41,91,1,20,-3,55,-17,-23,-17,-13,-37,-45,-45,-14,-72,-26,-23,-17,-22,-18,-21,-28,-62,-62,-62,-62,-60,-57,-60,-63,-71,-74,-135,-51,-57,-55,-56,-37,-40,-21,-48,-61,-137,-140,-153,-149,-153,-151,-170,-100,-847,-810,-811,-762,-807,-797,-780,-725,-812,-807,-932,-915]} 1. d4 {[%emt 0:00:04]} d5 {[%emt 0:09:01]} 2. c4 {[%emt 0:00:06]} e6 {[%emt 0:00:37]} 3. Nf3 {[%emt 0:00:23]} Nf6 {[%emt 0:00:30]} 4. Bg5 {[%emt 0:02:08]} c6 {[%emt 0:03:07]} 5. Nbd2 {[%emt 0:05:28]} h6 {[%emt 0:01:55]} 6. Bxf6 {[%emt 0:09:15] D30: Queen's Gambit Declined: Systems without Nc3.} Qxf6 {[%emt 0:00:11]} 7. e3 {[%emt 0:01:11]} Nd7 {[%emt 0:05:39]} 8. Be2 {[%emt 0:01:16] White is slightly better.} dxc4 $146 {[%emt 0:04:36]} (8... Bd6 $11) (8... g6 9. O-O Bg7 10. b4 O-O 11. a4 Qe7 12. Qb3 Rd8 13. Rac1 a5 14. b5 c5 {1-0 Riazantsev,A (2645)-Sapunov,E (2461) Moscow blitz 73rd 2019 (7)}) 9. Nxc4 $14 {[%emt 0:03:24]} Bb4+ {[%emt 0:02:31]} 10. Ncd2 {[%emt 0:00:23]} (10. Kf1 $14) 10... e5 {[%emt 0:03:22]} 11. Qc2 {[%emt 0:03:47]} O-O {[%emt 0:08:23]} 12. O-O {[%emt 0:00:45]} exd4 {[%emt 0:15:11]} 13. Nxd4 {[%emt 0:01:21]} Ne5 {[%emt 0:00:41]} (13... Re8 $11) 14. Ne4 {[%emt 0:11:14]} Qe7 {[%emt 0:01:03] A sharp opening} (14... Qd8 $14) 15. Ng3 {[%emt 0:11:00]} (15. f4 $1 $16 {[%cal Rf4e5]}) 15... g6 $11 {[%emt 0:05:02]} 16. Rad1 {[%emt 0:05:57]} Bd7 {[%emt 0:07:11]} (16... Ba5 $11) 17. Nf3 {[%emt 0:06:48]} (17. a3 $14 Bc5 18. h4) 17... Nxf3+ {[%emt 0:06:49]} 18. Bxf3 {[%emt 0:00:04]} Rad8 {[%emt 0:00:22]} 19. Qe4 {[%emt 0:03:32]} Be6 {[%emt 0:01:25]} 20. a3 {[%emt 0:06:24]} Bc5 {[%emt 0:02:55]} 21. Ne2 {[%emt 0:01:16]} (21. Qc2 $11) 21... Qf6 {[%emt 0:01:11]} (21... Bb3 $17 22. Rxd8 Rxd8 23. Qxe7 Bxe7) 22. Qc2 {[%emt 0:05:40]} Bb6 {[%emt 0:03:21]} 23. Nc3 {[%emt 0:00:53]} h5 {[%emt 0:02:41]} 24. Ne4 {[%emt 0:04:22]} Qe5 {[%emt 0:01:53]} 25. Qc3 {[%emt 0:00:20]} Qxc3 {[%emt 0:00:34]} 26. Nxc3 {[%emt 0:00:02]} Bb3 {[%emt 0:00:25]} 27. Rxd8 {[%emt 0:01:58]} Rxd8 {[%emt 0:00:06]} 28. Rb1 {[%emt 0:05:53]} Bc7 {[%emt 0:05:34]} 29. g3 {[%emt 0:01:07]} Be5 {[%emt 0:01:17]} 30. Kf1 {[%emt 0:01:07]} (30. Ne4 $142) 30... a5 {[%emt 0:01:56]} ({Black should play} 30... Rd2 $17 31. Ke1 Rc2) 31. Bd1 {[%emt 0:03:09]} Be6 {[%emt 0:01:58]} 32. Ke1 {[%emt 0:00:59] Repels Rd2} b5 {[%emt 0:01:56]} 33. Bf3 {[%emt 0:01:03]} b4 {[%emt 0:00:58]} 34. axb4 {[%emt 0:00:30]} axb4 {[%emt 0:00:05]} 35. Ne2 {[%emt 0:01:47] [#]} ({Better is} 35. Na4 $15) 35... c5 $1 $17 {[%emt 0:00:53]} 36. b3 {[%emt 0:01:01]} Rd3 {[%emt 0:00:30] Black has more active pieces.} 37. Nc1 {[%emt 0:00:34]} Bc3+ {[%emt 0:00:20]} 38. Kf1 {[%emt 0:00:33] [#]} Rd2 {[%emt 0:00:15]} (38... Bf5 $1 $19 {White must now prevent ...Rd2.} 39. Ne2 Rxe3 40. fxe3 Bxb1) 39. Be2 $2 {[%emt 0:00:33][%mdl 8192] White does not recover from this.} (39. Ne2 $17) 39... Bf5 {[%emt 0:00:49] Black is clearly winning. This pair of bishops is nice.} 40. Nd3 {[%emt 0:01:21]} Bxd3 {[%emt 0:00:19]} 41. Bxd3 {[%emt 0:00:03]} Rxd3 {[%emt 0:00:07]} 42. Ke2 {[%emt 0:00:24]} Rd2+ {[%emt 0:00:06]} 43. Kf3 {[%emt 0:00:20]} f5 {[%emt 0:00:16]} 44. h4 {[%emt 0:00:09]} Kf7 {[%emt 0:04:29] Weighted Error Value: White=0.41/Black=0.16 (very precise)   Loses game:     	White=1     	---        Mistake:       	White=6     	Black=7      Inaccurate:     	White=4     	Black=2      OK:         	White=9     	Black=13     Best:        	White=2     	Black=1      Strong:       	---       	Black=1} 0-1